lending/lending_fUSD_20240202
["ID","MTS","AMOUNT","RATE_DAILY","PERIOD"]
[313170708,1706869841845,-365.07230987,0.00022998,2]
[313170709,1706869841856,-917.73887216,0.00022998,2]
[313170710,1706869841866,-299.45866417,0.00022998,2]
[313170711,1706869841876,-1206.90050166,0.00022998,2]
[313170712,1706869841885,-1374.42899066,0.00022998,2]
[313170713,1706869841895,-287.30832033,0.00022998,2]
[313170714,1706869841906,-1259.57085833,0.00022998,2]
[313170715,1706869841915,-423.17276574,0.00022998,2]
[313170716,1706869841924,-768.69623108,0.00022998,2]
[313170717,1706869841934,-188.4021558,0.00022998,2]
[313170718,1706869841946,-211.20606042,0.00022998,2]
[313170719,1706869841964,-373.14406517,0.00022998,2]
[313170720,1706869841982,-419.53227465,0.00022998,2]
[313170721,1706869841994,-4532.60671085,0.00022998,2]
[313170722,1706869842004,-302.68847767,0.00022998,2]
[313170723,1706869842015,-162.66203163,0.00022998,2]
[313170724,1706869842024,-1968.40634476,0.00022998,2]
[313170725,1706869842034,-246.36551425,0.00022998,2]
[313170726,1706869842043,-315.05678162,0.00022998,2]
[313170727,1706869842053,-476.37887876,0.00022998,2]
[313170728,1706869842062,-671.81421461,0.00022999,2]
[313170729,1706869842071,-382.63610378,0.00022999,2]
[313170730,1706869842080,-3983.0674405,0.00022999,2]
[313170731,1706869842089,-50762.4413163,0.00022999,2]
[313170732,1706869842103,-555.900003,0.00022999,2]
[313170733,1706869842114,-5610.39032302,0.00022999,2]
[313170734,1706869842126,-854.44252208,0.00022999,2]
[313170735,1706869842139,-590.29,0.00022999,2]
[313170736,1706869842150,-250.5,0.00022999,2]
[313170737,1706869842162,-39796.34766961,0.00022999,2]
[313170738,1706869842173,-19521.45362892,0.00022999,2]
[313170739,1706869842188,-542.406562,0.00022999,2]
[313170740,1706869842199,-4302.56179016,0.00022999,2]
[313170741,1706869842210,-824.1117,0.00022999,2]
[313170742,1706869842225,-259.41654144,0.00022999,2]
[313170743,1706869842237,-558.59855038,0.00022999,2]
[313170744,1706869842252,-381.19675957,0.00022999,2]
[313170770,1706869845597,-945.08,0.00022951,2]
[313170771,1706869845609,-995.92,0.00022951,2]
[313170772,1706869845618,-124.83474578,0.00022951,2]
[313170773,1706869845655,-111.16525422,0.00022951,2]
[313170774,1706869845664,-474.37305348,0.00022999,2]
[313170775,1706869845676,-555.34,0.00022999,2]
[313170776,1706869845688,-317.6556056,0.00022999,2]
[313170777,1706869845700,-5187.33107292,0.00022999,2]
[313170778,1706869845845,-1015.73782321,0.00022999,2]
[313170779,1706869845857,-465.37814332,0.00022999,2]
[313170780,1706869845871,-2037.31092658,0.00022999,2]
[313170781,1706869845893,-1487.62096218,0.00022999,2]
[313170782,1706869845904,-275.16935946,0.00022999,2]
[313170792,1706869846482,-155.44252608,0.00022998,2]
[313170793,1706869846491,-2149.85747393,0.00022999,2]
[313170794,1706869846651,-2447.11218323,0.00022999,2]
[313170811,1706869866926,176.85,0.00022,2]
[313170812,1706869891885,1288.28532384,0.00021064,2]
[313170813,1706869892211,1288.28532384,0.00021322,2]
[313170814,1706869892515,1288.28532384,0.00021569,2]
[313170815,1706869892867,1288.28532384,0.00021805,2]
[313170816,1706869893177,1288.28532384,0.00022153,2]
[313170817,1706869893495,1288.28532384,0.00022259,2]
[313170818,1706869894368,500.0,0.00022,2]
[313170819,1706869904476,150.77,0.00022001,2]
[313170820,1706869904679,150.77,0.0002223,2]
[313170821,1706869904903,150.77,0.00022459,2]
[313170828,1706869932342,4439.99,0.00022322,2]
[313170829,1706869947592,2209.65,0.00021837,2]
[313170833,1706869953710,209.0,0.00022125,2]
[313170834,1706869991470,159.44358331,0.00022427,2]
[313170835,1706869996547,159.44358331,0.00022474,2]
[313170836,1706870010711,3535.6,0.00021874,2]
[313170837,1706870016538,1288.28532384,0.00022135,2]
[313170838,1706870016855,1288.28532384,0.00022261,2]
[313170839,1706870032654,250.0,0.00021949,2]
[313170840,1706870077996,1908.59,0.00021917,2]
[313170841,1706870080916,200.0,0.00021874,2]
[313170842,1706870098012,516.48,0.00021914,2]
[313170843,1706870123428,1038.04,0.00021914,2]
[313170844,1706870150373,704.64,0.00019993,2]
[313170845,1706870150719,704.64,0.00022257,2]
[313170846,1706870155197,1288.28532385,0.0002235,2]
[313170847,1706870172234,370.4,0.00021874,2]
[313170848,1706870212728,200.0,0.00021912,2]
[313170849,1706870253157,200.0,0.00021874,2]
[313170850,1706870288720,2705.0,0.00021909,2]
[313170851,1706870347026,150.77,0.00022093,2]
[313170852,1706870390543,184.39,0.00021874,2]
[313170853,1706870497539,176.85,0.00022,2]
[313170854,1706870527442,500.0,0.00022,2]
[313170855,1706870527797,586.81,0.0002189,2]
[313170856,1706870544242,159.93,0.00021899,2]
[313170857,1706870567096,634.17,0.00019957,2]
[313170858,1706870567507,634.17,0.00022221,2]
[313170859,1706870605904,185.2,0.00021895,2]
[313170860,1706870673265,2946.33,0.00021896,2]
[313170861,1706870791006,350.16869039,0.000225,2]
[313170862,1706870803500,461.18,0.00021894,2]
[313170863,1706870828308,150.77,0.00022047,2]
[313170864,1706870900119,160.87,0.00022182,2]
[313170867,1706870961936,159.44358331,0.00022439,2]
[313170868,1706870966935,159.44358331,0.00022497,2]
[313170870,1706870995240,530.55,0.00021951,2]
[313170871,1706871006501,570.75,0.00020034,2]
[313170872,1706871006822,570.75,0.00022297,2]
[313170874,1706871034582,-479.05340948,0.00022524,2]
[313170875,1706871034592,-82.63604577,0.00022525,2]
[313170876,1706871034605,-217.36395423,0.00022525,2]
[313170877,1706871034615,-150.0,0.00022525,2]
[313170878,1706871034625,-99.2710835,0.00022526,2]
[313170879,1706871034641,-400.0,0.00022526,2]
[313170880,1706871034653,-440.8651,0.00022526,2]
[313170881,1706871034695,-341.80390131,0.00022526,2]
[313170899,1706871037449,-6800.0314305,0.00022526,2]
[313170902,1706871037504,-3833.21694403,0.00022526,2]
[313170903,1706871037664,-256.46769848,0.00022526,2]
[313170904,1706871037676,-1578.15325982,0.00022526,2]
[313170905,1706871037685,-1108.90965086,0.00022539,2]
[313170906,1706871037694,-1029.96188124,0.00022539,2]
[313170907,1706871037703,-1501.32752364,0.00022539,3]
[313170908,1706871037713,-176.85,0.00022548,2]
[313170909,1706871037722,-159.44358331,0.00022554,2]
[313170910,1706871037732,-159.44358331,0.00022612,2]
[313170911,1706871037742,-150.0,0.00022631,2]
[313170912,1706871037751,-299.99,0.00022664,7]
[313170913,1706871037760,-159.44358331,0.0002267,2]
[313170914,1706871037769,-159.44358331,0.00022727,2]
[313170915,1706871037778,-1288.28532385,0.00022731,2]
[313170916,1706871037788,-1054.73834187,0.00022767,2]
[313170917,1706871037798,-159.44358331,0.00022785,2]
[313170918,1706871037808,-159.44358331,0.00022842,2]
[313170919,1706871037819,-739.90452587,0.00022899,3]
[313170920,1706871037828,-1333.0026,0.00022899,2]
[313170921,1706871037837,-3323.6878,0.00022899,2]
[313170922,1706871037846,-3517.9879,0.00022899,2]
[313170923,1706871037855,-263.334,0.000229,2]
[313170924,1706871037864,-1208.9645,0.000229,2]
[313170925,1706871037874,-5000.0,0.000229,2]
[313170926,1706871037883,-153.47438051,0.000229,2]
[313170927,1706871037893,-159.44358331,0.000229,2]
[313170928,1706871037902,-1758.57780014,0.000229,2]
[313170929,1706871037923,-461.18,0.00022989,2]
[313170930,1706871037933,-291.48520677,0.00022997,2]
[313170931,1706871037943,-506.68463745,0.00022997,2]
[313170932,1706871037952,-1380.107342,0.00022997,2]
[313170933,1706871037962,-2142.32527762,0.00022997,2]
[313170934,1706871037971,-296.3263743,0.00022997,2]
[313170935,1706871037981,-544.5387257,0.00022997,2]
[313170936,1706871037991,-2065.52138934,0.00022997,4]
[313170937,1706871038001,-374.0650919,0.00022998,2]
[313170938,1706871038011,-58461.43954886,0.00022999,2]
[313170939,1706871038030,-1722.76,0.00022999,2]
[313170940,1706871038053,-506.68463745,0.00022999,2]
[313170946,1706871040731,-150.0,0.00022624,2]
[313170947,1706871040741,-13526.37638499,0.00022999,2]
[313170948,1706871040762,-4243.7500002,0.00022999,2]
[313170949,1706871040790,-4906.3,0.00022999,2]
[313170954,1706871043148,-264.4956,0.000229,2]
[313170955,1706871043368,-44692.7144,0.000229,2]
[313170956,1706871043378,-6993.33150198,0.00022999,2]
[313170960,1706871043531,-2270.36021325,0.00022999,2]
[313170961,1706871043647,-19385.1,0.00022999,2]
[313170990,1706871045559,-976.58973711,0.00022999,2]
[313170991,1706871045568,-142.94357189,0.00022999,2]
[313170992,1706871045668,-239.69253189,0.00022999,2]
[313170993,1706871045677,-1041.26641611,0.00022999,2]
[313170994,1706871045834,-694.14833885,0.00022999,2]
[313171028,1706871056362,2770.06075677,0.00022078,2]
[313171029,1706871129091,176.85,0.00022,2]
[313171030,1706871165026,1317.20409197,0.00022278,2]
[313171031,1706871249944,184.39,0.00022076,2]
[313171033,1706871269064,150.77,0.00022486,2]
[313171037,1706871284718,355.33929425,0.00022368,2]
[313171038,1706871284744,961.86479772,0.00022368,2]
[313171039,1706871303021,200.0,0.00022218,2]
[313171040,1706871332015,9253.97,0.00022154,2]
[313171041,1706871355657,150.0,0.00022154,2]
[313171042,1706871416884,583.95,0.00020242,2]
[313171043,1706871431183,575.56,0.0002216,2]
[313171044,1706871487779,172.57,0.0002215,2]
[313171045,1706871507749,2717.79,0.00022204,2]
[313171046,1706871525648,1241.22231336,0.00022494,2]
[313171047,1706871537217,2000.0,0.00022185,2]
[313171048,1706871591054,200.0,0.00022185,2]
[313171049,1706871635670,534.63116618,0.00022185,2]
[313171050,1706871637596,260.81174276,0.00022185,2]
[313171051,1706871642365,12948.72947614,0.00022185,2]
[313171052,1706871667420,276.7,0.00022239,2]
[313171053,1706871759147,176.85,0.00022,2]
[313171054,1706871787522,150.0,0.00022,2]
[313171055,1706871791166,150.0,0.00022,2]
[313171056,1706871829779,554.75,0.00020232,2]
[313171057,1706871830160,554.75,0.00022496,2]
[313171058,1706871854939,539.55,0.0002214,2]
[313171059,1706871867542,500.0,0.00022,2]
[313171060,1706871868287,500.0,0.00022,2]
[313171061,1706871869053,500.0,0.00022,2]
[313171062,1706871869814,500.0,0.00022,2]
[313171063,1706871870572,500.0,0.00022,2]
[313171064,1706871871350,500.0,0.00022,2]
[313171065,1706871872133,500.0,0.00022,2]
[313171066,1706871872967,500.0,0.00022,2]
[313171067,1706871873654,500.0,0.00022,2]
[313171068,1706871877481,163.40584855,0.00022472,2]
[313171069,1706871911997,2264.82,0.00022065,2]
[313171070,1706871922040,172.57,0.00022036,2]
[313171071,1706871940535,500.0,0.00022,2]
[313171072,1706871941468,500.0,0.00022,2]
[313171073,1706871942284,500.0,0.00022,2]
[313171074,1706871943259,500.0,0.00022,2]
[313171075,1706871944057,500.0,0.00022,2]
[313171076,1706871944863,500.0,0.00022,2]
[313171077,1706871945618,500.0,0.00022,2]
[313171078,1706871946489,500.0,0.00022,2]
[313171079,1706871947293,500.0,0.00022,2]
[313171080,1706871948076,500.0,0.00022,2]
[313171081,1706871948841,500.0,0.00022,2]
[313171082,1706871949667,500.0,0.00022,2]
[313171083,1706871950436,500.0,0.00022,2]
[313171084,1706871951262,500.0,0.00022,2]
[313171085,1706871952414,500.0,0.00022,2]
[313171086,1706871953199,500.0,0.00022,2]
[313171087,1706871953964,500.0,0.00022,2]
[313171088,1706871954792,500.0,0.00022,2]
[313171089,1706871955592,500.0,0.00022,2]
[313171090,1706871956376,500.0,0.00022,2]
[313171091,1706872023315,500.0,0.00022,2]
[313171092,1706872024068,500.0,0.00022,2]
[313171093,1706872024855,500.0,0.00022,2]
[313171094,1706872025674,500.0,0.00022,2]
[313171095,1706872026434,500.0,0.00022,2]
[313171096,1706872027363,500.0,0.00022,2]
[313171097,1706872028427,500.0,0.00022,2]
[313171098,1706872029212,500.0,0.00022,2]
[313171099,1706872029982,500.0,0.00022,2]
[313171100,1706872030760,500.0,0.00022,2]
[313171101,1706872031548,500.0,0.00022,2]
[313171102,1706872032308,500.0,0.00022,2]
[313171103,1706872033062,500.0,0.00022,2]
[313171104,1706872033828,500.0,0.00022,2]
[313171105,1706872034711,425.01,0.00022,2]
[313171106,1706872091159,212.06982414,0.00023,30]
[313171111,1706872101318,500.0,0.00022,2]
[313171112,1706872102092,500.0,0.00022,2]
[313171113,1706872102869,500.0,0.00022,2]
[313171114,1706872114064,209.0,0.00022438,2]
[313171122,1706872152238,1317.20409197,0.00022478,2]
[313171131,1706872231704,-479.05340948,0.00022547,2]
[313171132,1706872231714,-176.85,0.00022548,2]
[313171133,1706872231728,-730.71,0.00022549,2]
[313171134,1706872231737,-413.8022136,0.00022551,2]
[313171135,1706872231751,-303.7777864,0.00022551,2]
[313171136,1706872231761,-736.53,0.00022554,2]
[313171137,1706872231771,-732.13,0.0002256,2]
[313171138,1706872231781,-715.82,0.00022572,2]
[313171139,1706872231790,-109.93411185,0.00022799,2]
[313171140,1706872231802,-40.06588815,0.00022799,2]
[313171141,1706872231812,-150.0,0.00022799,2]
[313171142,1706872231821,-791.60088865,0.000228,2]
[313171143,1706872231842,-569.13634758,0.000228,2]
[313171144,1706872231854,-2000.0926644,0.000228,2]
[313171145,1706872231865,-611.97438854,0.000228,2]
[313171146,1706872231877,-4313.7094,0.000228,2]
[313171154,1706872232068,-425.425,0.000228,2]
[313171156,1706872232081,-585.85365242,0.000228,2]
[313171159,1706872232097,-433.3649623,0.000228,2]
[313171177,1706872237747,-502.92080419,0.000228,2]
[313171178,1706872237916,-1328.04865887,0.000228,2]
[313171198,1706872241010,-1244.6844767,0.000228,2]
[313171199,1706872241122,-692.22583235,0.000228,2]
[313171200,1706872241177,-143.401624,0.000228,2]
[313171201,1706872241188,-724.55,0.00022826,2]
[313171202,1706872241197,-115.87053687,0.00022894,2]
[313171203,1706872241210,-605.09946313,0.00022894,2]
[313171204,1706872241220,-713.39,0.00022899,2]
[313171205,1706872241229,-27.82424453,0.000229,2]
[313171206,1706872241241,-509.73860691,0.000229,2]
[313171207,1706872241257,-649.02,0.000229,2]
[313171208,1706872241277,-719.92152545,0.000229,2]
[313171315,1706872242982,-2208.80328565,0.000229,2]
[313171316,1706872242997,-787.42793746,0.000229,2]
[313171317,1706872243006,-181874.667,0.000229,2]
[313171318,1706872243015,-507.3838,0.000229,2]
[313171320,1706872243024,-1042.52048278,0.000229,2]
[313171401,1706872245702,-479.05340948,0.00022899,2]
[313171403,1706872245712,-8957.47951722,0.000229,2]
[313171405,1706872245722,-153.47438051,0.000229,2]
[313171407,1706872245731,-200.79168995,0.000229,6]
[313171409,1706872245741,-552.87555977,0.000229,2]
[313171410,1706872245750,-177.25922494,0.000229,2]
[313171411,1706872245761,-320.0,0.00022918,2]
[313171412,1706872245770,-150.0,0.00022918,2]
[313171413,1706872245779,-342.0,0.00022918,2]
[313171414,1706872245788,-719.21,0.00022944,2]
[313171415,1706872245798,-1570.287,0.00022949,2]
[313171416,1706872245807,-1034.0,0.00022949,2]
[313171417,1706872245817,-2264.15413527,0.00022998,3]
[313171418,1706872245826,-1696.61813397,0.00022998,2]
[313171419,1706872245835,-2313.11582133,0.00022998,2]
[313171420,1706872245845,-306.10888302,0.00022999,2]
[313171421,1706872245854,-13432.0722444,0.00022999,2]
[313171426,1706872259198,2482.12405516,0.00022307,2]
[313171427,1706872263686,207.0,0.00022438,2]
[313171428,1706872269472,519.54,0.00021104,2]
[313171429,1706872282455,150.0,0.00022,2]
[313171430,1706872306566,3198.37181468,0.00022077,2]
[313171431,1706872328145,568.36,0.0002247,2]
[313171432,1706872364809,150.0,0.00022,2]
[313171433,1706872390261,176.85,0.00022,2]
[313171434,1706872415229,500.0,0.00022,2]
[313171435,1706872622115,160.87,0.00022412,2]
[313171436,1706872631559,-2605.00019935,0.00022525,2]
[313171437,1706872631581,-2628.57372136,0.00022526,2]
[313171438,1706872631601,-479.05340948,0.00022527,2]
[313171439,1706872631621,-4259.7878402,0.00022528,2]
[313171440,1706872631641,-27.58482961,0.00022532,2]
[313171441,1706872759388,2033.2,0.00022383,2]
[313171442,1706872786459,493.56,0.00020673,2]
[313171443,1706872790111,545.31,0.00022409,2]
[313171444,1706872876974,221.36,0.00022356,2]
[313171445,1706873020602,150.0,0.00022,2]
[313171446,1706873023584,176.85,0.00021899,2]
[313171447,1706873024861,176.85,0.00022447,2]
[313171448,1706873078200,62259.92596907,0.000224,2]
[313171449,1706873188501,-450.0,0.00025,3]
[313171450,1706873213771,563.75,0.00022333,2]
[313171451,1706873254319,468.88,0.00020415,2]
[313171452,1706873393175,1694.33,0.00022413,2]
[313171460,1706873433890,-1021.40420012,0.00022539,2]
[313171461,1706873433900,-568.85042261,0.000226,2]
[313171465,1706873433950,-257.11704311,0.000226,2]
[313171466,1706873433962,-58.2080139,0.000226,2]
[313171467,1706873433971,-468.88,0.00022679,2]
[313171468,1706873433980,-300.0,0.00022798,2]
[313171469,1706873433990,-150.0,0.00022798,2]
[313171470,1706873433999,-1401.50523512,0.00022799,2]
[313171471,1706873434011,-1737.50061937,0.00022799,2]
[313171472,1706873434022,-382.01533802,0.00022799,2]
[313171473,1706873434033,-940.9021208,0.00022799,2]
[313171474,1706873434045,-661.68277074,0.00022799,2]
[313171475,1706873434072,-1078.45174944,0.00022799,2]
[313171476,1706873434083,-500.61671431,0.00022799,2]
[313171477,1706873434101,-876.46031176,0.00022799,2]
[313171478,1706873434113,-543.5873639,0.00022799,2]
[313171479,1706873434152,-2224.53765689,0.00022799,2]
[313171480,1706873434211,-1922.63282376,0.00022799,2]
[313171481,1706873434222,-965.17012946,0.00022799,2]
[313171482,1706873434234,-612.90951479,0.00022799,2]
[313171483,1706873434246,-741.8811006,0.00022799,2]
[313171484,1706873434258,-1018.48435104,0.00022799,2]
[313171485,1706873434268,-1000.0,0.00022799,2]
[313171487,1706873434277,-8796.1842,0.00022799,2]
[313171489,1706873434286,-851.4828,0.000228,2]
[313171491,1706873434296,-235.71058665,0.00022897,2]
[313171492,1706873434306,-294.07125296,0.00022898,2]
[313171493,1706873434315,-254.84475444,0.00022898,2]
[313171494,1706873434324,-7496.42677244,0.00022899,2]
[313171506,1706873437893,-592.4481492,0.00022899,2]
[313171507,1706873437931,-2546.38577049,0.00022899,2]
[313171508,1706873438153,-355.20800026,0.00022899,2]
[313171509,1706873438164,-1211.94,0.00022899,2]
[313171510,1706873438209,-782.52983112,0.00022899,2]
[313171511,1706873438221,-1073.55137915,0.00022899,2]
[313171520,1706873441402,-0.02515103,0.00022899,2]
[313171526,1706873443451,-681.77888495,0.00022899,2]
[313171527,1706873443464,-56696.82556391,0.00022899,2]
[313171528,1706873443477,-2627.76022133,0.00022899,2]
[313171529,1706873443562,-21897.15716859,0.00022899,2]
[313171530,1706873443622,-474.58390042,0.00022899,2]
[313171531,1706873443634,-903.87469806,0.00022899,2]
[313171532,1706873443698,-327.71451975,0.00022899,2]
[313171533,1706873443710,-403.96999975,0.00022899,2]
[313171534,1706873443721,-728.16584196,0.00022899,2]
[313171535,1706873443733,-426.96508485,0.00022899,2]
[313171536,1706873443744,-1936.92619786,0.00022899,2]
[313171537,1706873443755,-338.68288348,0.00022899,2]
[313171558,1706873446099,-295.25514135,0.00022899,2]
[313171559,1706873446160,-712.29723616,0.00022899,2]
[313171571,1706873446504,-127287.94660389,0.00022899,2]
[313171573,1706873446513,-153.47438051,0.000229,2]
[313171575,1706873446523,-499.99,0.000229,2]
[313171577,1706873446532,-211.3638569,0.000229,2]
[313171579,1706873446542,-46618.2242403,0.000229,2]
[313171584,1706873458728,541.30052825,0.00022077,2]
[313171587,1706873463352,2482.12405516,0.00022307,2]
[313171588,1706873464005,202.7392099,0.00022413,2]
[313171589,1706873467837,220.41371843,0.00022413,2]
[313171590,1706873472578,150.0,0.00022,2]
[313171591,1706873489879,638.4458939,0.00022989,3]
[313171592,1706873489963,1215.98358378,0.00022999,3]
[313171593,1706873518584,23900.0,0.0002228,2]
[313171595,1706873541152,159.91567417,0.00022,2]
[313171596,1706873553566,158.06,0.00022447,2]
[313171597,1706873562272,519.03515942,0.00022989,3]
[313171598,1706873562377,488.81317512,0.00022997,3]
[313171599,1706873612503,150.0,0.00022167,2]
[313171600,1706873631001,200.0,0.00022055,2]
[313171601,1706873636568,395.58257742,0.00022997,3]
[313171602,1706873646122,549.0,0.00022273,2]
[313171603,1706873660200,176.85,0.00021899,2]
[313171604,1706873661456,176.85,0.00022447,2]
[313171605,1706873710289,344.87833378,0.00022997,3]
[313171606,1706873720906,202.81,0.00021992,2]
[313171609,1706873784189,4078.78580126,0.00022997,3]
[313171610,1706873803446,467.03,0.00020197,2]
[313171611,1706873803799,467.03,0.00022461,2]
[313171612,1706873809403,3688.93765392,0.00022997,4]
[313171613,1706873812609,1528.10820431,0.00020697,5]
[313171614,1706873813942,7128.88530616,0.00022997,5]
[313171615,1706873814872,383.84,0.00022029,2]
[313171616,1706873816406,1281.43130232,0.00022997,5]
[313171617,1706873821888,250.0,0.00021986,2]
[313171618,1706873825063,2000.0,0.00022117,2]
[313171619,1706873827534,3013.64779452,0.00022997,4]
[313171620,1706873829930,6606.72038872,0.00022997,5]
[313171621,1706873836394,1281.43130232,0.00022997,5]
[313171622,1706873858247,-158.06,0.00022615,2]
[313171623,1706873858275,-4640.60516449,0.00022633,2]
[313171624,1706873858300,-2977.4533,0.00022634,2]
[313171625,1706873858323,-966.849049,0.00022639,2]
[313171626,1706873858548,-158.06,0.00022782,2]
[313171627,1706873858581,-300.0,0.00022798,2]
[313171628,1706873858603,-150.0,0.00022798,2]
[313171629,1706873858627,-7937.1885,0.00022799,2]
[313171630,1706873858649,-4721.0652,0.00022799,2]
[313171631,1706873858677,-421.03960501,0.00022898,2]
[313171632,1706873858701,-2569.6791815,0.00022899,2]
[313171633,1706873858745,1281.43130232,0.00022997,5]
[313171634,1706873859171,1776.77795075,0.00022997,3]
[313171635,1706873859556,-25000.0,0.00022899,2]
[313171636,1706873860549,-2607.3682185,0.00022899,2]
[313171637,1706873860573,-22392.6317815,0.00022899,2]
[313171638,1706873861394,-20764.3939185,0.00022899,2]
[313171639,1706873861419,-2500.0,0.00022899,2]
[313171640,1706873861444,-269.8311,0.00022899,2]
[313171641,1706873861467,-1465.7749815,0.00022899,2]
[313171642,1706873861755,171.54,0.00017761,2]
[313171643,1706873862275,-11580.86078944,0.00022899,2]
[313171644,1706873862302,-187.45920282,0.00022899,2]
[313171645,1706873862328,-187.45920275,0.00022899,2]
[313171646,1706873862352,-187.45920275,0.00022899,2]
[313171647,1706873862375,-187.45920275,0.00022899,2]
[313171648,1706873862399,-187.45920275,0.000229,2]
[313171649,1706873862423,-187.45920275,0.000229,2]
[313171650,1706873862448,-187.45920275,0.000229,2]
[313171651,1706873862473,-153.78751074,0.000229,2]
[313171652,1706873862498,-11953.1372805,0.000229,2]
[313171653,1706873863319,-25000.0,0.000229,2]
[313171654,1706873864312,-6644.9584792,0.000229,2]
[313171655,1706873864336,-191.65210527,0.000229,2]
[313171656,1706873864361,-187.45920275,0.000229,2]
[313171657,1706873864385,-158.06,0.00022949,2]
[313171658,1706873864407,-1497.61991085,0.00022952,2]
[313171659,1706873864430,-320.0,0.0002299,2]
[313171660,1706873864453,-1034.0,0.0002299,2]
[313171661,1706873864476,-176.85,0.00022995,2]
[313171662,1706873864500,-155.0,0.00022997,2]
[313171663,1706873864525,-228.92260854,0.00022997,2]
[313171664,1706873864549,-505.56119428,0.00022997,2]
[313171665,1706873864572,-500.0,0.00022997,2]
[313171666,1706873864596,-1435.25462273,0.00022997,2]
[313171667,1706873864620,-3839.25629242,0.00022997,2]
[313171668,1706873864644,-8125.40558396,0.00022997,2]
[313171669,1706873865345,-23295.94124484,0.00022997,2]
[313171670,1706873865373,-464.70239065,0.00022997,2]
[313171671,1706873865399,-1239.35636451,0.00022997,2]
[313171672,1706873866411,-1045.2167084,0.000229,2]
[313171673,1706873866437,-196.71473607,0.00022997,2]
[313171674,1706873866463,-408.41431133,0.00022997,2]
[313171675,1706873866488,-1073.11886561,0.00022997,2]
[313171676,1706873866514,-3470.82752822,0.00022997,2]
[313171677,1706873866539,-266.29365801,0.00022997,2]
[313171678,1706873866563,-161.73896252,0.00022997,2]
[313171679,1706873866591,-453.21134134,0.00022997,2]
[313171680,1706873866615,-155.43355965,0.00022997,2]
[313171681,1706873866638,-1375.07063722,0.00022998,2]
[313171682,1706873866668,-306.10888302,0.00022998,2]
[313171683,1706873866693,-16087.85080861,0.00022999,2]
[313171684,1706873867424,-25000.0,0.00022999,2]
[313171685,1706873868888,-25000.0,0.00022999,2]
[313171686,1706873870061,-25000.0,0.00022999,2]
[313171687,1706873871081,-4636.51024007,0.00022998,2]
[313171688,1706873871106,-20363.48975993,0.00022999,2]
[313171689,1706873872005,-25000.0,0.00022999,2]
[313171690,1706873873408,-229.58166227,0.00022998,2]
[313171691,1706873873556,-24770.41833773,0.00022999,2]
[313171692,1706873874578,-22534.5790956,0.00022999,2]
[313171693,1706873874601,-2465.4209044,0.00022999,2]
[313171694,1706873875694,-791.48187918,0.00022999,2]
[313171695,1706873875720,-500.0,0.00022999,2]
[313171696,1706873875744,-351.37562596,0.00022999,2]
[313171697,1706873875769,-313.66657883,0.00022999,2]
[313171698,1706873875793,-839.0,0.00023,2]
[313171699,1706873875817,-2867.0,0.00023,2]
[313171700,1706873875841,-274.939,0.00023,2]
[313171701,1706873875866,-428.0,0.00023,2]
[313171702,1706873875889,-474.653,0.00023,2]
[313171703,1706873875912,-150.0,0.00023,2]
[313171704,1706873875936,-1138.0,0.00023,2]
[313171705,1706873875959,-859.0,0.00023,2]
[313171706,1706873875982,-342.0,0.00023,2]
[313171707,1706873876008,-150.772,0.00023,2]